Workbook

Sheet 00.Orçamento Resumo
A1: INSERIR NO PAPEL TIMBRADO
A2: AO
A3: COMITÊ PARALÍMPICO BRASILEIRO
A4: ORÇAMENTO
A5: OBJETO: | B5: PRESTAÇÃO DE SERVIÇOS DE CONFECÇAO DE UNIFORMES ESPORTIVOS ALTO PADRÃO, CONFORME ESPECIFICAÇÕES CONSTANTES NO TERMO DE REFERÊNCIA.
A7: EMPRESA:
A8: CNPJ:
A9: RESPONSÁVEL:
A10: TELEFONE:
A11: ENDEREÇO:
A12: E-MAIL:
A14: MISSÕES
A15: ITEM | B15: DESCRIÇÃO | C15: VALOR TOTAL
A16: 1 | B16: ='01. DESFILE'!B1 -> 01. DESFILE | C16: ='01. DESFILE'!G26 -> 
A17: 2 | B17: ='02. PÓDIO'!B1 -> 02. PÓDIO | C17: ='02. PÓDIO'!G26 -> 
A18: 3 | B18: ='03. PASSEIO FEMININO'!B1 -> 03. PASSEIO FEMININO | C18: ='03. PASSEIO FEMININO'!G116 -> 
A19: 4 | B19: ='04. PASSEIO MASCULINO'!B1 -> 04. PASSEIO MASCULINO | C19: ='04. PASSEIO MASCULINO'!G98 -> 
A20: 5 | B20: ='05. ATLETISMO'!B1 -> 05. ATLETISMO | C20: ='05. ATLETISMO'!G140 -> 
A21: 6 | B21: ='06. BASQUETE E RUGBY EM CR'!B1 -> 06. BASQUETE E RUGBY EM CR | C21: ='06. BASQUETE E RUGBY EM CR'!G80 -> 
A22: 7 | B22: ='07. PARABADMINTON'!B1 -> 07. PARABADMINTON | C22: ='07. PARABADMINTON'!G50 -> 
A23: 8 | B23: ='08. BOCHA'!B1 -> 08. BOCHA | C23: ='08. BOCHA'!G38 -> 
A24: 9 | B24: ='09. FUTEBOL DE CEGOS E PC'!B1 -> 09. FUTEBOL DE CEGOS E PC | C24: ='09. FUTEBOL DE CEGOS E PC'!G50 -> 
A25: 10 | B25: ='10. GOALBALL'!B1 -> 10. GOALBALL | C25: ='10. GOALBALL'!G50 -> 
A26: 11 | B26: ='11. HALTEROFILISMO'!B1 -> 11. HALTEROFILISMO | C26: ='11. HALTEROFILISMO'!G14 -> 
A27: 12 | B27: ='12. TÊNIS DE MESA'!B1 -> 12. TÊNIS DE MESA | C27: ='12. TÊNIS DE MESA'!G56 -> 
A28: 13 | B28: ='13. TÊNIS EM CR'!B1 -> 13. TÊNIS EM CR | C28: ='13. TÊNIS EM CR'!G56 -> 
A29: 14 | B29: ='14. TIRO COM ARCO'!B1 -> 14. TIRO COM ARCO | C29: ='14. TIRO COM ARCO'!G44 -> 
A30: 15 | B30: ='15. TIRO ESPORTIVO'!B1 -> 15. TIRO ESPORTIVO | C30: ='15. TIRO ESPORTIVO'!G38 -> 
A31: 16 | B31: ='16. VÔLEI SENTADO'!B1 -> 16. VÔLEI SENTADO | C31: ='16. VÔLEI SENTADO'!G104 -> 
A32: TOTAL | C32: =IF(SUM(C16:C31)=0,"",(SUM(C16:C31))) -> 
A34: LOTERIAS CAIXA
A35: ITEM | B35: DESCRIÇÃO | C35: VALOR TOTAL
A36: 17 | B36: ='17. LOTERIAS CAIXA'!B1 -> LOTERIAS CAIXAS | C36: ='17. LOTERIAS CAIXA'!G105 -> 
A37: TOTAL | C37: =IF(SUM(C36:C36)=0,"",(SUM(C36:C36))) -> 
A39: LOTERIAS CAIXA E BRASKEM
A40: ITEM | B40: DESCRIÇÃO | C40: VALOR TOTAL
A41: 18 | B41: ='18. LOT. CAIXA E BRASKEM'!B1 -> LOTERIAS CAIXAS E BRASKEM | C41: ='18. LOT. CAIXA E BRASKEM'!G105 -> 
A42: TOTAL | C42: =IF(SUM(C41:C41)=0,"",(SUM(C41:C41))) -> 
A44: TIME SÃO PAULO
A45: ITEM | B45: DESCRIÇÃO | C45: VALOR TOTAL
A46: 19 | B46: ='19. TIME SÃO PAULO'!B1 -> TIME SÃO PAULO | C46: ='19. TIME SÃO PAULO'!G39 -> 
A47: TOTAL | C47: =IF(SUM(C46:C46)=0,"",(SUM(C46:C46))) -> 
A49: ENDOMARKETING
A50: ITEM | B50: DESCRIÇÃO | C50: VALOR TOTAL
A51: 20 | B51: ='20. ENDOMARKETING'!B1 -> ENDOMARKETING | C51: ='20. ENDOMARKETING'!G39 -> 
A52: TOTAL | C52: =IF(SUM(C51:C51)=0,"",(SUM(C51:C51))) -> 
A54: TOTAL DO ORÇAMENTO | C54: =IF(SUM(C32,C37,C42,C47,C52)=0,"",(SUM(C32,C37,C42,C47,C52))) -> 
A56: Valor da Proposta: | B56: =C54 -> 
A57: Valor p/ Extenso:
A59: Condições de Pagamento:
A60: Em até 30 dias após o recebimento da Nota Fiscal e prestação dos serviços ou recebimento dos materiais junto ao responsável pela compra, mediante depósito bancário.
A62: Condições de Entrega:
A65: Garantia Produto/Serviço:
A68: Validade da Proposta
A69: 60 (sessenta) dias.
A71: Observaçãoes Gerais
A76: Data: | B76: xx/xx/xxxx
A78: _______________________________________________
A79: =IF($B$7="","",$B$7) -> 
A80: =IF($B$8="","",$B$8) -> 
A81: =IF($B$9="","",$B$9) -> 
A82: =IF($B$10="","",$B$10) -> 

Sheet Total Itens
A1: OBJETO: | B1: PRESTAÇÃO DE SERVIÇOS DE CONFECÇAO DE UNIFORMES ESPORTIVOS ALTO PADRÃO, CONFORME ESPECIFICAÇÕES CONSTANTES NO TERMO DE REFERÊNCIA.
A3: MISSÕES
A4: ITEM | B4: DESCRIÇÃO | C4: TOTAL ITENS
A5: 1 | B5: ='01. DESFILE'!B1 -> 01. DESFILE | C5: =SUM('01. DESFILE'!E3:E24) -> 3948
A6: 2 | B6: ='02. PÓDIO'!B1 -> 02. PÓDIO | C6: =SUM('02. PÓDIO'!E3:E24) -> 3948
A7: 3 | B7: ='03. PASSEIO FEMININO'!B1 -> 03. PASSEIO FEMININO | C7: =SUM('03. PASSEIO FEMININO'!E3:E114) -> 11474
A8: 4 | B8: ='04. PASSEIO MASCULINO'!B1 -> 04. PASSEIO MASCULINO | C8: =SUM('04. PASSEIO MASCULINO'!E3:E96) -> 20496
A9: 5 | B9: ='05. ATLETISMO'!B1 -> 05. ATLETISMO | C9: =SUM('05. ATLETISMO'!E3:E138) -> 10006
A10: 6 | B10: ='06. BASQUETE E RUGBY EM CR'!B1 -> 06. BASQUETE E RUGBY EM CR | C10: =SUM('06. BASQUETE E RUGBY EM CR'!E3:E78) -> 2608
A11: 7 | B11: ='07. PARABADMINTON'!B1 -> 07. PARABADMINTON | C11: =SUM('07. PARABADMINTON'!E3:E48) -> 360
A12: 8 | B12: ='08. BOCHA'!B1 -> 08. BOCHA | C12: =SUM('08. BOCHA'!E3:E36) -> 360
A13: 9 | B13: ='09. FUTEBOL DE CEGOS E PC'!B1 -> 09. FUTEBOL DE CEGOS E PC | C13: =SUM('09. FUTEBOL DE CEGOS E PC'!E3:E48) -> 480
A14: 10 | B14: ='10. GOALBALL'!B1 -> 10. GOALBALL | C14: =SUM('10. GOALBALL'!E3:E48) -> 320
A15: 11 | B15: ='11. HALTEROFILISMO'!B1 -> 11. HALTEROFILISMO | C15: =SUM('11. HALTEROFILISMO'!E3:E12) -> 340
A16: 12 | B16: ='12. TÊNIS DE MESA'!B1 -> 12. TÊNIS DE MESA | C16: =SUM('12. TÊNIS DE MESA'!E3:E54) -> 840
A17: 13 | B17: ='13. TÊNIS EM CR'!B1 -> 13. TÊNIS EM CR | C17: =SUM('13. TÊNIS EM CR'!E3:E54) -> 112
A18: 14 | B18: ='14. TIRO COM ARCO'!B1 -> 14. TIRO COM ARCO | C18: =SUM('14. TIRO COM ARCO'!E3:E42) -> 160
A19: 15 | B19: ='15. TIRO ESPORTIVO'!B1 -> 15. TIRO ESPORTIVO | C19: =SUM('15. TIRO ESPORTIVO'!E3:E36) -> 180
A20: 16 | B20: ='16. VÔLEI SENTADO'!B1 -> 16. VÔLEI SENTADO | C20: =SUM('16. VÔLEI SENTADO'!E3:E102) -> 1896
A21: TOTAL GERAL DE ITENS | C21: =IF(SUM(C5:C20)=0,"",(SUM(C5:C20))) -> 57528
A23: LOTERIAS CAIXA
A24: ITEM | B24: DESCRIÇÃO | C24: TOTAL ITENS
A25: 17 | B25: ='17. LOTERIAS CAIXA'!B1 -> LOTERIAS CAIXAS | C25: =SUM('17. LOTERIAS CAIXA'!E3:E103) -> 4700
A26: TOTAL GERAL DE ITENS | C26: =IF(SUM(C25:C25)=0,"",(SUM(C25:C25))) -> 4700
A28: LOTERIAS CAIXA E BRASKEM
A29: ITEM | B29: DESCRIÇÃO | C29: TOTAL ITENS
A30: 18 | B30: ='18. LOT. CAIXA E BRASKEM'!B1 -> LOTERIAS CAIXAS E BRASKEM | C30: =SUM('18. LOT. CAIXA E BRASKEM'!E3:E103) -> 2900
A31: TOTAL GERAL DE ITENS | C31: =IF(SUM(C30:C30)=0,"",(SUM(C30:C30))) -> 2900
A33: TIME SÃO PAULO
A34: ITEM | B34: DESCRIÇÃO | C34: TOTAL ITENS
A35: 19 | B35: ='19. TIME SÃO PAULO'!B1 -> TIME SÃO PAULO | C35: =SUM('19. TIME SÃO PAULO'!E3:E37) -> 1200
A36: TOTAL GERAL DE ITENS | C36: =IF(SUM(C35:C35)=0,"",(SUM(C35:C35))) -> 1200
A38: ENDOMARKETING
A39: ITEM | B39: DESCRIÇÃO | C39: TOTAL ITENS
A40: 20 | B40: ='20. ENDOMARKETING'!B1 -> ENDOMARKETING | C40: =SUM('20. ENDOMARKETING'!E3:E37) -> 1020
A41: TOTAL GERAL DE ITENS | C41: =IF(SUM(C40:C40)=0,"",(SUM(C40:C40))) -> 1020
A43: TOTAL GERAL DE ITENS | C43: =IF(SUM(C21,C26,C31,C36,C41)=0,"",(SUM(C21,C26,C31,C36,C41))) -> 67348

Sheet 01. DESFILE
B1: 01. DESFILE
B2: ITEM | C2: IMAGEM ILUSTRATIUVA | D2: MODELO | E2: QTD | F2: VALOR UNITÁRIO | G2: VALOR TOTAL
B3: 1 | D3: QUEBRA VENTO MASCULINO / PA.015.20 | E3: 1364 | G3: =IF(E3="","",IF(F3="","",(E3*F3))) -> 
B8: ITEM | C8: IMAGEM ILUSTRATIUVA | D8: MODELO | E8: QTD | F8: VALOR UNITÁRIO | G8: VALOR TOTAL
B9: 2 | D9: CALÇA MASCULINA / PA.012.20 | E9: 1364 | G9: =IF(E9="","",IF(F9="","",(E9*F9))) -> 
B14: ITEM | C14: IMAGEM ILUSTRATIUVA | D14: MODELO | E14: QTD | F14: VALOR UNITÁRIO | G14: VALOR TOTAL
B15: 3 | D15: QUEBRA VENTO FEMININO / PA.030.20 | E15: 610 | G15: =IF(E15="","",IF(F15="","",(E15*F15))) -> 
B20: ITEM | C20: IMAGEM ILUSTRATIUVA | D20: MODELO | E20: QTD | F20: VALOR UNITÁRIO | G20: VALOR TOTAL
B21: 4 | D21: CALÇA FEMININA / PA.027.20 | E21: 610 | G21: =IF(E21="","",IF(F21="","",(E21*F21))) -> 
B26: TOTAL | G26: =IF(SUM(G3,G9,G15,G21)=0,"",SUM(G3,G9,G15,G21)) -> 
B28: Valor da Proposta: | C28: =G26 -> 
B30: ='00.Orçamento Resumo'!A7 -> EMPRESA: | C30: =IF('00.Orçamento Resumo'!$B$7="","",'00.Orçamento Resumo'!$B$7) -> 
B31: ='00.Orçamento Resumo'!A8 -> CNPJ: | C31: =IF('00.Orçamento Resumo'!$B$8="","",'00.Orçamento Resumo'!$B$8) -> 

Sheet 02. PÓDIO
B1: 02. PÓDIO
B2: ITEM | C2: IMAGEM ILUSTRATIUVA | D2: MODELO | E2: QTD | F2: VALOR UNITÁRIO | G2: VALOR TOTAL
B3: 1 | D3: BLUSÃO MASCULINO / PO.007.20 | E3: 1364 | G3: =IF(E3="","",IF(F3="","",(E3*F3))) -> 
B8: ITEM | C8: IMAGEM ILUSTRATIUVA | D8: MODELO | E8: QTD | F8: VALOR UNITÁRIO | G8: VALOR TOTAL
B9: 2 | D9: CALÇA MASCULINA / PO.008.20 | E9: 1364 | G9: =IF(E9="","",IF(F9="","",(E9*F9))) -> 
B14: ITEM | C14: IMAGEM ILUSTRATIUVA | D14: MODELO | E14: QTD | F14: VALOR UNITÁRIO | G14: VALOR TOTAL
B15: 3 | D15: BLUSÃO FEMININO / PO.009.20 | E15: 610 | G15: =IF(E15="","",IF(F15="","",(E15*F15))) -> 
B20: ITEM | C20: IMAGEM ILUSTRATIUVA | D20: MODELO | E20: QTD | F20: VALOR UNITÁRIO | G20: VALOR TOTAL
B21: 4 | D21: CALÇA FEMININA / PO.0010.20 | E21: 610 | G21: =IF(E21="","",IF(F21="","",(E21*F21))) -> 
B26: TOTAL | G26: =IF(SUM(G3,G9,G15,G21)=0,"",SUM(G3,G9,G15,G21)) -> 
B28: Valor da Proposta: | C28: =G26 -> 
B30: ='00.Orçamento Resumo'!A7 -> EMPRESA: | C30: =IF('00.Orçamento Resumo'!$B$7="","",'00.Orçamento Resumo'!$B$7) -> 
B31: ='00.Orçamento Resumo'!A8 -> CNPJ: | C31: =IF('00.Orçamento Resumo'!$B$8="","",'00.Orçamento Resumo'!$B$8) -> 

Sheet 03. PASSEIO FEMININO
B1: 03. PASSEIO FEMININO
B2: ITEM | C2: IMAGEM ILUSTRATIUVA | D2: MODELO | E2: QTD | F2: VALOR UNITÁRIO | G2: VALOR TOTAL
B3: 1 | D3: BLUSÃO FLEECE FEMININO / | E3: 610 | G3: =IF(E3="","",IF(F3="","",(E3*F3))) -> 
B8: ITEM | C8: IMAGEM ILUSTRATIUVA | D8: MODELO | E8: QTD | F8: VALOR UNITÁRIO | G8: VALOR TOTAL
B9: 2 | D9: CALÇA FLEECE FEMININA / | E9: 610 | G9: =IF(E9="","",IF(F9="","",(E9*F9))) -> 
B14: ITEM | C14: IMAGEM ILUSTRATIUVA | D14: MODELO | E14: QTD | F14: VALOR UNITÁRIO | G14: VALOR TOTAL
B15: 3 | D15: BLUSÃO FEMININO / PA.028.20 | G15: =IF(E15="","",IF(F15="","",(E15*F15))) -> 
B20: ITEM | C20: IMAGEM ILUSTRATIUVA | D20: MODELO | E20: QTD | F20: VALOR UNITÁRIO | G20: VALOR TOTAL
B21: 4 | D21: CALÇA FEMININA / PA.029.20 | G21: =IF(E21="","",IF(F21="","",(E21*F21))) -> 
B26: ITEM | C26: IMAGEM ILUSTRATIUVA | D26: MODELO | E26: QTD | F26: VALOR UNITÁRIO | G26: VALOR TOTAL
B27: 5 | D27: LEGGING FEMININA / PA.031.20 (AZUL) | E27: 610 | G27: =IF(E27="","",IF(F27="","",(E27*F27))) -> 
B32: ITEM | C32: IMAGEM ILUSTRATIUVA | D32: MODELO | E32: QTD | F32: VALOR UNITÁRIO | G32: VALOR TOTAL
B33: 6 | D33: LEGGING FEMININA / PA.031.20 (VERDE) | E33: 610 | G33: =IF(E33="","",IF(F33="","",(E33*F33))) -> 
B38: ITEM | C38: IMAGEM ILUSTRATIUVA | D38: MODELO | E38: QTD | F38: VALOR UNITÁRIO | G38: VALOR TOTAL
B39: 7 | D39: BERMUDA FEMININA / PA.033.20 | E39: 610 | G39: =IF(E39="","",IF(F39="","",(E39*F39))) -> 
B44: ITEM | C44: IMAGEM ILUSTRATIUVA | D44: MODELO | E44: QTD | F44: VALOR UNITÁRIO | G44: VALOR TOTAL
B45: 8 | D45: REGATA FEMININA / PA.034.20 (AMARELA) | E45: 610 | G45: =IF(E45="","",IF(F45="","",(E45*F45))) -> 
B50: ITEM | C50: IMAGEM ILUSTRATIUVA | D50: MODELO | E50: QTD | F50: VALOR UNITÁRIO | G50: VALOR TOTAL
B51: 9 | D51: REGATA FEMININA / PA.034.20 (VERDE) | E51: 610 | G51: =IF(E51="","",IF(F51="","",(E51*F51))) -> 
B56: ITEM | C56: IMAGEM ILUSTRATIUVA | D56: MODELO | E56: QTD | F56: VALOR UNITÁRIO | G56: VALOR TOTAL
B57: 10 | D57: SHORT FEMININO / PA.035.20 | E57: 1162 | G57: =IF(E57="","",IF(F57="","",(E57*F57))) -> 
B62: ITEM | C62: IMAGEM ILUSTRATIUVA | D62: MODELO | E62: QTD | F62: VALOR UNITÁRIO | G62: VALOR TOTAL
B63: 11 | D63: CAMISA POLO FEMININA POLIESTER / PA.038.20 (VERDE) | E63: 610 | G63: =IF(E63="","",IF(F63="","",(E63*F63))) -> 
B68: ITEM | C68: IMAGEM ILUSTRATIUVA | D68: MODELO | E68: QTD | F68: VALOR UNITÁRIO | G68: VALOR TOTAL
B69: 12 | D69: CAMISA POLO FEMININA POLIESTER / PA.060.20 (AZUL) | E69: 610 | G69: =IF(E69="","",IF(F69="","",(E69*F69))) -> 
K71: 610
B74: ITEM | C74: IMAGEM ILUSTRATIUVA | D74: MODELO | E74: QTD | F74: VALOR UNITÁRIO | G74: VALOR TOTAL
B75: 13 | D75: CAMISA POLO FEMININA PIQUET / PA.039.20 (BRANCA) | E75: 610 | G75: =IF(E75="","",IF(F75="","",(E75*F75))) -> 
B80: ITEM | C80: IMAGEM ILUSTRATIUVA | D80: MODELO | E80: QTD | F80: VALOR UNITÁRIO | G80: VALOR TOTAL
B81: 14 | D81: CAMISA POLO FEMININA PIQUET / PA.036.20 (VERDE) | E81: 610 | G81: =IF(E81="","",IF(F81="","",(E81*F81))) -> 
B86: ITEM | C86: IMAGEM ILUSTRATIUVA | D86: MODELO | E86: QTD | F86: VALOR UNITÁRIO | G86: VALOR TOTAL
B87: 15 | D87: CAMISETA FEMININA / (BRANCA) | E87: 1162 | G87: =IF(E87="","",IF(F87="","",(E87*F87))) -> 
B92: ITEM | C92: IMAGEM ILUSTRATIUVA | D92: MODELO | E92: QTD | F92: VALOR UNITÁRIO | G92: VALOR TOTAL
B93: 16 | D93: CAMISETA FEMININA / PA.104.20 (AMARELA) | E93: 610 | G93: =IF(E93="","",IF(F93="","",(E93*F93))) -> 
B98: ITEM | C98: IMAGEM ILUSTRATIUVA | D98: MODELO | E98: QTD | F98: VALOR UNITÁRIO | G98: VALOR TOTAL
B99: 17 | D99: TOP FEMININO / PA.042.20 (AZUL) | E99: 610 | G99: =IF(E99="","",IF(F99="","",(E99*F99))) -> 
B104: ITEM | C104: IMAGEM ILUSTRATIUVA | D104: MODELO | E104: QTD | F104: VALOR UNITÁRIO | G104: VALOR TOTAL
B105: 18 | D105: TOP FEMININO / PA.042.20 (BRANCO) | E105: 610 | G105: =IF(E105="","",IF(F105="","",(E105*F105))) -> 
B110: ITEM | C110: IMAGEM ILUSTRATIUVA | D110: MODELO | E110: QTD | F110: VALOR UNITÁRIO | G110: VALOR TOTAL
B111: 19 | D111: CAMISETA SEGUNDA PELE FEMININA / CO.144.20 | E111: 610 | G111: =IF(E111="","",IF(F111="","",(E111*F111))) -> 
B116: TOTAL | G116: =IF(SUM(G3,G9,G15,G21,G27,G33,G39,G45,G51,G57,G63,G69,G75,G81,G87,G93,G99,G105,G111)=0,"",SUM(G3,G9,G15,G21,G27,G33,G39,G45,G51,G57,G63,G69,G75,G81,G87,G93,G99,G105,G111)) -> 
B118: Valor da Proposta: | C118: =G116 -> 
B120: ='00.Orçamento Resumo'!A7 -> EMPRESA: | C120: =IF('00.Orçamento Resumo'!$B$7="","",'00.Orçamento Resumo'!$B$7) -> 
B121: ='00.Orçamento Resumo'!A8 -> CNPJ: | C121: =IF('00.Orçamento Resumo'!$B$8="","",'00.Orçamento Resumo'!$B$8) -> 

Sheet 04. PASSEIO MASCULINO
B1: 04. PASSEIO MASCULINO
B2: ITEM | C2: IMAGEM ILUSTRATIUVA | D2: MODELO | E2: QTD | F2: VALOR UNITÁRIO | G2: VALOR TOTAL
B3: 1 | D3: BLUSÃO FLEECE MASCULINO / | E3: 1364 | G3: =IF(E3="","",IF(F3="","",(E3*F3))) -> 
B8: ITEM | C8: IMAGEM ILUSTRATIUVA | D8: MODELO | E8: QTD | F8: VALOR UNITÁRIO | G8: VALOR TOTAL
B9: 2 | D9: CALÇA FLEECE MASCULINA / | E9: 1364 | G9: =IF(E9="","",IF(F9="","",(E9*F9))) -> 
B14: ITEM | C14: IMAGEM ILUSTRATIUVA | D14: MODELO | E14: QTD | F14: VALOR UNITÁRIO | G14: VALOR TOTAL
B15: 3 | D15: BLUSÃO MASCULINO / PA.013.20 | G15: =IF(E15="","",IF(F15="","",(E15*F15))) -> 
B20: ITEM | C20: IMAGEM ILUSTRATIUVA | D20: MODELO | E20: QTD | F20: VALOR UNITÁRIO | G20: VALOR TOTAL
B21: 4 | D21: CALÇA MASCULINA / PA.014.20 | G21: =IF(E21="","",IF(F21="","",(E21*F21))) -> 
B26: ITEM | C26: IMAGEM ILUSTRATIUVA | D26: MODELO | E26: QTD | F26: VALOR UNITÁRIO | G26: VALOR TOTAL
B27: 5 | D27: CAMISA POLO MASCULINA POLIESTER / PA.018.20 (VERDE) | E27: 1364 | G27: =IF(E27="","",IF(F27="","",(E27*F27))) -> 
B32: ITEM | C32: IMAGEM ILUSTRATIUVA | D32: MODELO | E32: QTD | F32: VALOR UNITÁRIO | G32: VALOR TOTAL
B33: 6 | D33: CAMISA POLO MASCULINA POLIESTER / PA.043.20 (AZUL) | E33: 1364 | G33: =IF(E33="","",IF(F33="","",(E33*F33))) -> 
B38: ITEM | C38: IMAGEM ILUSTRATIUVA | D38: MODELO | E38: QTD | F38: VALOR UNITÁRIO | G38: VALOR TOTAL
B39: 7 | D39: CAMISA POLO MASCULINA PIQUET / PA.019.20 (BRANCA) | E39: 1554 | G39: =IF(E39="","",IF(F39="","",(E39*F39))) -> 
B44: ITEM | C44: IMAGEM ILUSTRATIUVA | D44: MODELO | E44: QTD | F44: VALOR UNITÁRIO | G44: VALOR TOTAL
B45: 8 | D45: CAMISA POLO MASCULINA PIQUET / PA.019.20 (VERDE) | E45: 1364 | G45: =IF(E45="","",IF(F45="","",(E45*F45))) -> 
B50: ITEM | C50: IMAGEM ILUSTRATIUVA | D50: MODELO | E50: QTD | F50: VALOR UNITÁRIO | G50: VALOR TOTAL
B51: 9 | D51: CAMISETA MASCULINA / PA.020.20 (BRANCA) | E51: 2574 | G51: =IF(E51="","",IF(F51="","",(E51*F51))) -> 
B56: ITEM | C56: IMAGEM ILUSTRATIUVA | D56: MODELO | E56: QTD | F56: VALOR UNITÁRIO | G56: VALOR TOTAL
B57: 10 | D57: CAMISETA MASCULINA / PA.059.20 (AMARELA) | E57: 1364 | G57: =IF(E57="","",IF(F57="","",(E57*F57))) -> 
B62: ITEM | C62: IMAGEM ILUSTRATIUVA | D62: MODELO | E62: QTD | F62: VALOR UNITÁRIO | G62: VALOR TOTAL
B63: 11 | D63: REGATA MASCULINA / PA.024.20 (AMARELA) | E63: 1364 | G63: =IF(E63="","",IF(F63="","",(E63*F63))) -> 
B68: ITEM | C68: IMAGEM ILUSTRATIUVA | D68: MODELO | E68: QTD | F68: VALOR UNITÁRIO | G68: VALOR TOTAL
B69: 12 | D69: REGATA MASCULINA / PA.024.20 (VERDE) | E69: 1364 | G69: =IF(E69="","",IF(F69="","",(E69*F69))) -> 
B74: ITEM | C74: IMAGEM ILUSTRATIUVA | D74: MODELO | E74: QTD | F74: VALOR UNITÁRIO | G74: VALOR TOTAL
B75: 13 | D75: BERMUDA MASCULINA / PA.025.20 | E75: 1364 | G75: =IF(E75="","",IF(F75="","",(E75*F75))) -> 
B80: ITEM | C80: IMAGEM ILUSTRATIUVA | D80: MODELO | E80: QTD | F80: VALOR UNITÁRIO | G80: VALOR TOTAL
B81: 14 | D81: SHORT MASCULINO / CO.140.20 (AZUL MARINHO) | E81: 1364 | G81: =IF(E81="","",IF(F81="","",(E81*F81))) -> 
B86: ITEM | C86: IMAGEM ILUSTRATIUVA | D86: MODELO | E86: TOTAL | F86: VALOR UNITÁRIO | G86: VALOR TOTAL
B87: 15 | D87: SHORT MASCULINO / CO.140.20 (VERDE) | E87: 1364 | G87: =IF(E87="","",IF(F87="","",(E87*F87))) -> 
B92: ITEM | C92: IMAGEM ILUSTRATIUVA | D92: MODELO | E92: QTD | F92: VALOR UNITÁRIO | G92: VALOR TOTAL
B93: 16 | D93: CAMISETA SEGUNDA PELE MASCULINA / CO.132.20 | E93: 1364 | G93: =IF(E93="","",IF(F93="","",(E93*F93))) -> 
B98: TOTAL | G98: =IF(SUM(G3,G9,G15,G21,G27,G33,G39,G45,G51,G57,G63,G69,G75,G81,G87,G93,)=0,"",SUM(G3,G9,G15,G21,G27,G33,G39,G45,G51,G57,G63,G69,G75,G81,G87,G93,)) -> 
B100: Valor da Proposta: | C100: =G98 -> 
B102: ='00.Orçamento Resumo'!A7 -> EMPRESA: | C102: =IF('00.Orçamento Resumo'!$B$7="","",'00.Orçamento Resumo'!$B$7) -> 
B103: ='00.Orçamento Resumo'!A8 -> CNPJ: | C103: =IF('00.Orçamento Resumo'!$B$8="","",'00.Orçamento Resumo'!$B$8) -> 

Sheet 05. ATLETISMO
B1: 05. ATLETISMO
B2: ITEM | C2: IMAGEM ILUSTRATIUVA | D2: MODELO | E2: QTD | F2: VALOR UNITÁRIO | G2: VALOR TOTAL
B3: 1 | D3: REGATA MASCULINA / CO.044.20 (AMARELA) | E3: 410 | G3: =IF(E3="","",IF(F3="","",(E3*F3))) -> 
B8: ITEM | C8: IMAGEM ILUSTRATIUVA | D8: MODELO | E8: QTD | F8: VALOR UNITÁRIO | G8: VALOR TOTAL
B9: 2 | D9: REGATA MASCULINA / CO.044.20 (VERDE) | E9: 410 | G9: =IF(E9="","",IF(F9="","",(E9*F9))) -> 
B14: ITEM | C14: IMAGEM ILUSTRATIUVA | D14: MODELO | E14: QTD | F14: VALOR UNITÁRIO | G14: VALOR TOTAL
B15: 3 | D15: REGATA MASCULINA / CO.045.20 (AZUL) | E15: 410 | G15: =IF(E15="","",IF(F15="","",(E15*F15))) -> 
B20: ITEM | C20: IMAGEM ILUSTRATIUVA | D20: MODELO | E20: QTD | F20: VALOR UNITÁRIO | G20: VALOR TOTAL
B21: 4 | D21: CAMISETA MANGA LONGA MASCULINA / CO.046.20 | E21: 410 | G21: =IF(E21="","",IF(F21="","",(E21*F21))) -> 
B26: ITEM | C26: IMAGEM ILUSTRATIUVA | D26: MODELO | E26: QTD | F26: VALOR UNITÁRIO | G26: VALOR TOTAL
B27: 5 | D27: BERMUDA MASCULINA / CO.047.20 | E27: 410 | G27: =IF(E27="","",IF(F27="","",(E27*F27))) -> 
B32: ITEM | C32: IMAGEM ILUSTRATIUVA | D32: MODELO | E32: QTD | F32: VALOR UNITÁRIO | G32: VALOR TOTAL
B33: 6 | D33: BERMUDA MASCULINA / CO.048.20 (LISA) | E33: 410 | G33: =IF(E33="","",IF(F33="","",(E33*F33))) -> 
B38: ITEM | C38: IMAGEM ILUSTRATIUVA | D38: MODELO | E38: QTD | F38: VALOR UNITÁRIO | G38: VALOR TOTAL
B39: 7 | D39: MACAQUINHO MASCULINO / CO.049.20 | E39: 350 | G39: =IF(E39="","",IF(F39="","",(E39*F39))) -> 
B44: ITEM | C44: IMAGEM ILUSTRATIUVA | D44: MODELO | E44: QTD | F44: VALOR UNITÁRIO | G44: VALOR TOTAL
B45: 8 | D45: SHORT MASCULINO / CO.050.20 | E45: 350 | G45: =IF(E45="","",IF(F45="","",(E45*F45))) -> 
B50: ITEM | C50: IMAGEM ILUSTRATIUVA | D50: MODELO | E50: QTD | F50: VALOR UNITÁRIO | G50: VALOR TOTAL
B51: 9 | D51: LEGGING MASCULINA / CO.051.20 | E51: 410 | G51: =IF(E51="","",IF(F51="","",(E51*F51))) -> 
B56: ITEM | C56: IMAGEM ILUSTRATIUVA | D56: MODELO | E56: QTD | F56: VALOR UNITÁRIO | G56: VALOR TOTAL
B57: 10 | D57: LEGGING MASCULINA COM PÉ / CO.106.20 | E57: 350 | G57: =IF(E57="","",IF(F57="","",(E57*F57))) -> 
B62: ITEM | C62: IMAGEM ILUSTRATIUVA | D62: MODELO | E62: QTD | F62: VALOR UNITÁRIO | G62: VALOR TOTAL
B63: 11 | D63: MANGUITO MASCULINO / CO.141.20 | E63: 800 | G63: =IF(E63="","",IF(F63="","",(E63*F63))) -> 
B68: ITEM | C68: IMAGEM ILUSTRATIUVA | D68: MODELO | E68: QTD | F68: VALOR UNITÁRIO | G68: VALOR TOTAL
B69: 12 | D69: REGATA FEMININA / CO.070.20 (AZUL) | E69: 454 | G69: =IF(E69="","",IF(F69="","",(E69*F69))) -> 
B74: ITEM | C74: IMAGEM ILUSTRATIUVA | D74: MODELO | E74: QTD | F74: VALOR UNITÁRIO | G74: VALOR TOTAL
B75: 13 | D75: REGATA FEMININA / CO.071.20 (AMARELA) | E75: 454 | G75: =IF(E75="","",IF(F75="","",(E75*F75))) -> 
B80: ITEM | C80: IMAGEM ILUSTRATIUVA | D80: MODELO | E80: QTD | F80: VALOR UNITÁRIO | G80: VALOR TOTAL
B81: 14 | D81: Regata FEMININA / CO.071.20 (VERDE) | E81: 454 | G81: =IF(E81="","",IF(F81="","",(E81*F81))) -> 
B86: ITEM | C86: IMAGEM ILUSTRATIUVA | D86: MODELO | E86: QTD | F86: VALOR UNITÁRIO | G86: VALOR TOTAL
B87: 15 | D87: CROPPED FEMININO / CO.072.20 | E87: 454 | G87: =IF(E87="","",IF(F87="","",(E87*F87))) -> 
B92: ITEM | C92: IMAGEM ILUSTRATIUVA | D92: MODELO | E92: QTD | F92: VALOR UNITÁRIO | G92: VALOR TOTAL
B93: 16 | D93: CAMISETA MANGA LONGA FEMININA / CO.073.20 | E93: 454 | G93: =IF(E93="","",IF(F93="","",(E93*F93))) -> 
B98: ITEM | C98: IMAGEM ILUSTRATIUVA | D98: MODELO | E98: QTD | F98: VALOR UNITÁRIO | G98: VALOR TOTAL
B99: 17 | D99: BERMUDA FEMININA / CO.074.20 | E99: 454 | G99: =IF(E99="","",IF(F99="","",(E99*F99))) -> 
B104: ITEM | C104: IMAGEM ILUSTRATIUVA | D104: MODELO | E104: QTD | F104: VALOR UNITÁRIO | G104: VALOR TOTAL
B105: 18 | D105: BERMUDA FEMININA / CO.074.20 (LISA) | E105: 454 | G105: =IF(E105="","",IF(F105="","",(E105*F105))) -> 
B110: ITEM | C110: IMAGEM ILUSTRATIUVA | D110: MODELO | E110: QTD | F110: VALOR UNITÁRIO | G110: VALOR TOTAL
B111: 19 | D111: LEGGING FEMININA / CO.075.20 | E111: 454 | G111: =IF(E111="","",IF(F111="","",(E111*F111))) -> 
B116: ITEM | C116: IMAGEM ILUSTRATIUVA | D116: MODELO | E116: QTD | F116: VALOR UNITÁRIO | G116: VALOR TOTAL
B117: 20 | D117: LEGGING FEMININA COM PÉ / CO.076.20 | E117: 400 | G117: =IF(E117="","",IF(F117="","",(E117*F117))) -> 
B122: ITEM | C122: IMAGEM ILUSTRATIUVA | D122: MODELO | E122: QTD | F122: VALOR UNITÁRIO | G122: VALOR TOTAL
B123: 21 | D123: MACAQUINHO FEMININO / CO.077.20 | E123: 400 | G123: =IF(E123="","",IF(F123="","",(E123*F123))) -> 
B128: ITEM | C128: IMAGEM ILUSTRATIUVA | D128: MODELO | E128: QTD | F128: VALOR UNITÁRIO | G128: VALOR TOTAL
B129: 22 | D129: SHORT FEMININO / CO.078.20 | E129: 454 | G129: =IF(E129="","",IF(F129="","",(E129*F129))) -> 
B134: ITEM | C134: IMAGEM ILUSTRATIUVA | D134: MODELO | E134: QTD | F134: VALOR UNITÁRIO | G134: VALOR TOTAL
B135: 23 | D135: SUNKINI FEMININO / CO.079.20 | E135: 400 | G135: =IF(E135="","",IF(F135="","",(E135*F135))) -> 
B140: TOTAL | G140: =IF(SUM(G3,G9,G15,G21,G27,G33,G39,G45,G51,G57,G63,G69,G75,G81,G87,G93,G99,G105,G111,G117,G123,G129,G135)=0,"",SUM(G3,G9,G15,G21,G27,G33,G39,G45,G51,G57,G63,G69,G75,G81,G87,G93,G99,G105,G111,G117,G123,G129,G135)) -> 
B142: Valor da Proposta: | C142: =G140 -> 
B144: ='00.Orçamento Resumo'!A7 -> EMPRESA: | C144: =IF('00.Orçamento Resumo'!$B$7="","",'00.Orçamento Resumo'!$B$7) -> 
B145: ='00.Orçamento Resumo'!A8 -> CNPJ: | C145: =IF('00.Orçamento Resumo'!$B$8="","",'00.Orçamento Resumo'!$B$8) -> 

Sheet 06. BASQUETE E RUGBY EM CR
B1: 06. BASQUETE E RUGBY EM CR
B2: ITEM | C2: IMAGEM ILUSTRATIUVA | D2: MODELO | E2: QTD | F2: VALOR UNITÁRIO | G2: VALOR TOTAL
B3: 1 | D3: REGATA MASCULINA / CO.055.20 (AMARELA) | E3: 60 | G3: =IF(E3="","",IF(F3="","",(E3*F3))) -> 
B8: ITEM | C8: IMAGEM ILUSTRATIUVA | D8: MODELO | E8: QTD | F8: VALOR UNITÁRIO | G8: VALOR TOTAL
B9: 2 | D9: REGATA MASCULINA / CO.057.20 (AZUL) | E9: 60 | G9: =IF(E9="","",IF(F9="","",(E9*F9))) -> 
B14: ITEM | C14: IMAGEM ILUSTRATIUVA | D14: MODELO | E14: QTD | F14: VALOR UNITÁRIO | G14: VALOR TOTAL
B15: 3 | D15: REGATA MASCULINA / CO.108.20 (BRANCA) | E15: 60 | G15: =IF(E15="","",IF(F15="","",(E15*F15))) -> 
B20: ITEM | C20: IMAGEM ILUSTRATIUVA | D20: MODELO | E20: QTD | F20: VALOR UNITÁRIO | G20: VALOR TOTAL
B21: 4 | D21: BERMUDA CAPRI MASCULINA / CO.065.20 | E21: 60 | G21: =IF(E21="","",IF(F21="","",(E21*F21))) -> 
B26: ITEM | C26: IMAGEM ILUSTRATIUVA | D26: MODELO | E26: QTD | F26: VALOR UNITÁRIO | G26: VALOR TOTAL
B27: 5 | D27: BERMUDA MASCULINA / CO.066.20 | E27: 60 | G27: =IF(E27="","",IF(F27="","",(E27*F27))) -> 
B32: ITEM | C32: IMAGEM ILUSTRATIUVA | D32: MODELO | E32: QTD | F32: VALOR UNITÁRIO | G32: VALOR TOTAL
B33: 6 | D33: CAMISETA SEGUNDA PELE MASCULINA / CO.132.20 | E33: 1000 | G33: =IF(E33="","",IF(F33="","",(E33*F33))) -> 
B38: ITEM | C38: IMAGEM ILUSTRATIUVA | D38: MODELO | E38: QTD | F38: VALOR UNITÁRIO | G38: VALOR TOTAL
B39: 7 | D39: MANGUITO / CO.141.20 | E39: 600 | G39: =IF(E39="","",IF(F39="","",(E39*F39))) -> 
B44: ITEM | C44: IMAGEM ILUSTRATIUVA | D44: MODELO | E44: QTD | F44: VALOR UNITÁRIO | G44: VALOR TOTAL
B45: 8 | D45: REGATA FEMININA / CO.109.20 (AMARELA) | E45: 60 | G45: =IF(E45="","",IF(F45="","",(E45*F45))) -> 
B50: ITEM | C50: IMAGEM ILUSTRATIUVA | D50: MODELO | E50: QTD | F50: VALOR UNITÁRIO | G50: VALOR TOTAL
B51: 9 | D51: REGATA FEMININA / CO.110.20 (BRANCA) | E51: 60 | G51: =IF(E51="","",IF(F51="","",(E51*F51))) -> 
B56: ITEM | C56: IMAGEM ILUSTRATIUVA | D56: MODELO | E56: QTD | F56: VALOR UNITÁRIO | G56: VALOR TOTAL
B57: 10 | D57: REGATA FEMININA / CO.110.20 (AZUL) | E57: 60 | G57: =IF(E57="","",IF(F57="","",(E57*F57))) -> 
B62: ITEM | C62: IMAGEM ILUSTRATIUVA | D62: MODELO | E62: QTD | F62: VALOR UNITÁRIO | G62: VALOR TOTAL
B63: 11 | D63: BERMUDA CAPRI FEMININA / | E63: 64 | G63: =IF(E63="","",IF(F63="","",(E63*F63))) -> 
B68: ITEM | C68: IMAGEM ILUSTRATIUVA | D68: MODELO | E68: QTD | F68: VALOR UNITÁRIO | G68: VALOR TOTAL
B69: 12 | D69: BERMUDA FEMININA / CO.066.20 | E69: 64 | G69: =IF(E69="","",IF(F69="","",(E69*F69))) -> 
B74: ITEM | C74: IMAGEM ILUSTRATIUVA | D74: MODELO | E74: QTD | F74: VALOR UNITÁRIO | G74: VALOR TOTAL
B75: 13 | D75: CAMISETA SEGUNDA FEMININA / CO.144.20 | E75: 400 | G75: =IF(E75="","",IF(F75="","",(E75*F75))) -> 
B80: TOTAL | G80: =IF(SUM(G3,G9,G15,G21,G27,G33,G39,G45,G51,G57,G63,G69,G75)=0,"",SUM(G3,G9,G15,G21,G27,G33,G39,G45,G51,G57,G63,G69,G75)) -> 
B82: Valor da Proposta: | C82: =G80 -> 
B84: ='00.Orçamento Resumo'!A7 -> EMPRESA: | C84: =IF('00.Orçamento Resumo'!$B$7="","",'00.Orçamento Resumo'!$B$7) -> 
B85: ='00.Orçamento Resumo'!A8 -> CNPJ: | C85: =IF('00.Orçamento Resumo'!$B$8="","",'00.Orçamento Resumo'!$B$8) -> 

Sheet 07. PARABADMINTON
B1: 07. PARABADMINTON
B2: ITEM | C2: IMAGEM ILUSTRATIUVA | D2: MODELO | E2: QTD | F2: VALOR UNITÁRIO | G2: VALOR TOTAL
B3: 1 | D3: CAMISETA MASCULINA / CO.052.20 (AMARELA) | E3: 50 | G3: =IF(E3="","",IF(F3="","",(E3*F3))) -> 
B8: ITEM | C8: IMAGEM ILUSTRATIUVA | D8: MODELO | E8: QTD | F8: VALOR UNITÁRIO | G8: VALOR TOTAL
B9: 2 | D9: CAMISETA MASCULINA / CO.053.20 (VERDE) | E9: 50 | G9: =IF(E9="","",IF(F9="","",(E9*F9))) -> 
B14: ITEM | C14: IMAGEM ILUSTRATIUVA | D14: MODELO | E14: QTD | F14: VALOR UNITÁRIO | G14: VALOR TOTAL
B15: 3 | D15: CAMISETA MASCULINA / CO.054.20 (AZUL) | E15: 50 | G15: =IF(E15="","",IF(F15="","",(E15*F15))) -> 
B20: ITEM | C20: IMAGEM ILUSTRATIUVA | D20: MODELO | E20: QTD | F20: VALOR UNITÁRIO | G20: VALOR TOTAL
B21: 4 | D21: BERMUDA MASCULINA / CO.066.20 | E21: 50 | G21: =IF(E21="","",IF(F21="","",(E21*F21))) -> 
B26: ITEM | C26: IMAGEM ILUSTRATIUVA | D26: MODELO | E26: QTD | F26: VALOR UNITÁRIO | G26: VALOR TOTAL
B27: 5 | D27: CAMISETA FEMININA / CO.080.20 (AMARELA) | E27: 40 | G27: =IF(E27="","",IF(F27="","",(E27*F27))) -> 
B32: ITEM | C32: IMAGEM ILUSTRATIUVA | D32: MODELO | E32: QTD | F32: VALOR UNITÁRIO | G32: VALOR TOTAL
B33: 6 | D33: CAMISETA FEMININA / CO.081.20 (VERDE) | E33: 40 | G33: =IF(E33="","",IF(F33="","",(E33*F33))) -> 
B38: ITEM | C38: IMAGEM ILUSTRATIUVA | D38: MODELO | E38: QTD | F38: VALOR UNITÁRIO | G38: VALOR TOTAL
B39: 7 | D39: CAMISETA FEMININA / CO.082.20 (AZUL) | E39: 40 | G39: =IF(E39="","",IF(F39="","",(E39*F39))) -> 
B44: ITEM | C44: IMAGEM ILUSTRATIUVA | D44: MODELO | E44: QTD | F44: VALOR UNITÁRIO | G44: VALOR TOTAL
B45: 8 | D45: SHORT SAIA FEMININO / CO.085.20 | E45: 40 | G45: =IF(E45="","",IF(F45="","",(E45*F45))) -> 
B50: TOTAL | G50: =IF(SUM(G3,G9,G15,G21,G27,G33,G39,G45)=0,"",SUM(G3,G9,G15,G21,G27,G33,G39,G45)) -> 
B52: Valor da Proposta: | C52: =G50 -> 
B54: ='00.Orçamento Resumo'!A7 -> EMPRESA: | C54: =IF('00.Orçamento Resumo'!$B$7="","",'00.Orçamento Resumo'!$B$7) -> 
B55: ='00.Orçamento Resumo'!A8 -> CNPJ: | C55: =IF('00.Orçamento Resumo'!$B$8="","",'00.Orçamento Resumo'!$B$8) -> 

Sheet 08. BOCHA
B1: 08. BOCHA
B2: ITEM | C2: IMAGEM ILUSTRATIUVA | D2: MODELO | E2: QTD | F2: VALOR UNITÁRIO | G2: VALOR TOTAL
B3: 1 | D3: CAMISETA MASCULINA / CO.052.20 (AMARELA) | E3: 60 | G3: =IF(E3="","",IF(F3="","",(E3*F3))) -> 
B8: ITEM | C8: IMAGEM ILUSTRATIUVA | D8: MODELO | E8: QTD | F8: VALOR UNITÁRIO | G8: VALOR TOTAL
B9: 2 | D9: CAMISETA MASCULINA / CO.053.20 (VERDE) | E9: 60 | G9: =IF(E9="","",IF(F9="","",(E9*F9))) -> 
B14: ITEM | C14: IMAGEM ILUSTRATIUVA | D14: MODELO | E14: QTD | F14: VALOR UNITÁRIO | G14: VALOR TOTAL
B15: 3 | D15: CAMISETA MASCULINA / CO.054.20 (AZUL) | E15: 60 | G15: =IF(E15="","",IF(F15="","",(E15*F15))) -> 
B20: ITEM | C20: IMAGEM ILUSTRATIUVA | D20: MODELO | E20: QTD | F20: VALOR UNITÁRIO | G20: VALOR TOTAL
B21: 4 | D21: CAMISETA FEMININA / CO.080.20 (AMARELA) | E21: 60 | G21: =IF(E21="","",IF(F21="","",(E21*F21))) -> 
B26: ITEM | C26: IMAGEM ILUSTRATIUVA | D26: MODELO | E26: QTD | F26: VALOR UNITÁRIO | G26: VALOR TOTAL
B27: 5 | D27: CAMISETA FEMININA / CO.081.20 (VERDE) | E27: 60 | G27: =IF(E27="","",IF(F27="","",(E27*F27))) -> 
B32: ITEM | C32: IMAGEM ILUSTRATIUVA | D32: MODELO | E32: QTD | F32: VALOR UNITÁRIO | G32: VALOR TOTAL
B33: 6 | D33: CAMISETA FEMININA / CO.082.20 (AZUL) | E33: 60 | G33: =IF(E33="","",IF(F33="","",(E33*F33))) -> 
B38: TOTAL | G38: =IF(SUM(G3,G9,G15,G21,G27,G33)=0,"",SUM(G3,G9,G15,G21,G27,G33)) -> 
B40: Valor da Proposta: | C40: =G38 -> 
B42: ='00.Orçamento Resumo'!A7 -> EMPRESA: | C42: =IF('00.Orçamento Resumo'!$B$7="","",'00.Orçamento Resumo'!$B$7) -> 
B43: ='00.Orçamento Resumo'!A8 -> CNPJ: | C43: =IF('00.Orçamento Resumo'!$B$8="","",'00.Orçamento Resumo'!$B$8) -> 

Sheet 09. FUTEBOL DE CEGOS E PC
B1: 09. FUTEBOL DE CEGOS E PC
B2: ITEM | C2: IMAGEM ILUSTRATIUVA | D2: MODELO | E2: QTD | F2: VALOR UNITÁRIO | G2: VALOR TOTAL
B3: 1 | D3: CAMISETA MASCULINA / CO.052.20 (AMARELA) | E3: 60 | G3: =IF(E3="","",IF(F3="","",(E3*F3))) -> 
B8: ITEM | C8: IMAGEM ILUSTRATIUVA | D8: MODELO | E8: QTD | F8: VALOR UNITÁRIO | G8: VALOR TOTAL
B9: 2 | D9: CAMISETA MASCULINA / CO.053.20 (VERDE | E9: 60 | G9: =IF(E9="","",IF(F9="","",(E9*F9))) -> 
B14: ITEM | C14: IMAGEM ILUSTRATIUVA | D14: MODELO | E14: QTD | F14: VALOR UNITÁRIO | G14: VALOR TOTAL
B15: 3 | D15: CAMISETA MASCULINA / CO.054.20 (AZUL) | E15: 60 | G15: =IF(E15="","",IF(F15="","",(E15*F15))) -> 
B20: ITEM | C20: IMAGEM ILUSTRATIUVA | D20: MODELO | E20: QTD | F20: VALOR UNITÁRIO | G20: VALOR TOTAL
B21: 4 | D21: SHORT MASCULINO FUTEBOL / CO.140.20 | E21: 60 | G21: =IF(E21="","",IF(F21="","",(E21*F21))) -> 
B26: ITEM | C26: IMAGEM ILUSTRATIUVA | D26: MODELO | E26: QTD | F26: VALOR UNITÁRIO | G26: VALOR TOTAL
B27: 5 | D27: SHORT MASCULINO FUTEBOL / CO.140.20 (BRANCO) | E27: 60 | G27: =IF(E27="","",IF(F27="","",(E27*F27))) -> 
B32: ITEM | C32: IMAGEM ILUSTRATIUVA | D32: MODELO | E32: QTD | F32: VALOR UNITÁRIO | G32: VALOR TOTAL
B33: 6 | D33: CAMISETA GOLEIRO MASCULINA / CO.101.20 (VERDE) | E33: 60 | G33: =IF(E33="","",IF(F33="","",(E33*F33))) -> 
B38: ITEM | C38: IMAGEM ILUSTRATIUVA | D38: MODELO | E38: QTD | F38: VALOR UNITÁRIO | G38: VALOR TOTAL
B39: 7 | D39: CAMISETA GOLEIRO MASCULINA / CO.103.20 (CINZA) | E39: 60 | G39: =IF(E39="","",IF(F39="","",(E39*F39))) -> 
B44: ITEM | C44: IMAGEM ILUSTRATIUVA | D44: MODELO | E44: QTD | F44: VALOR UNITÁRIO | G44: VALOR TOTAL
B45: 8 | D45: SHORT MASCULINO GOLEIRO / CO.068.20 | E45: 60 | G45: =IF(E45="","",IF(F45="","",(E45*F45))) -> 
B50: TOTAL | G50: =IF(SUM(G3,G9,G15,G21,G27,G33,G39,G45)=0,"",SUM(G3,G9,G15,G21,G27,G33,G39,G45)) -> 
B52: Valor da Proposta: | C52: =G50 -> 
B54: ='00.Orçamento Resumo'!A7 -> EMPRESA: | C54: =IF('00.Orçamento Resumo'!$B$7="","",'00.Orçamento Resumo'!$B$7) -> 
B55: ='00.Orçamento Resumo'!A8 -> CNPJ: | C55: =IF('00.Orçamento Resumo'!$B$8="","",'00.Orçamento Resumo'!$B$8) -> 

Sheet 10. GOALBALL
B1: 10. GOALBALL
B2: ITEM | C2: IMAGEM ILUSTRATIUVA | D2: MODELO | E2: QTD | F2: VALOR UNITÁRIO | G2: VALOR TOTAL
B3: 1 | D3: CAMISETA ACOLCHOADA MASCULINA / CO.133.20 (AMARELA) | E3: 40 | G3: =IF(E3="","",IF(F3="","",(E3*F3))) -> 
B8: ITEM | C8: IMAGEM ILUSTRATIUVA | D8: MODELO | E8: QTD | F8: VALOR UNITÁRIO | G8: VALOR TOTAL
B9: 2 | D9: CAMISETA ACOLCHOADA MASCULINA / CO.134.20 (AZUL) | E9: 40 | G9: =IF(E9="","",IF(F9="","",(E9*F9))) -> 
B14: ITEM | C14: IMAGEM ILUSTRATIUVA | D14: MODELO | E14: QTD | F14: VALOR UNITÁRIO | G14: VALOR TOTAL
B15: 3 | D15: CAMISETA ACOLCHOADA MASCULINA / CO.135.20 (VERDE) | E15: 40 | G15: =IF(E15="","",IF(F15="","",(E15*F15))) -> 
B20: ITEM | C20: IMAGEM ILUSTRATIUVA | D20: MODELO | E20: QTD | F20: VALOR UNITÁRIO | G20: VALOR TOTAL
B21: 4 | D21: CALÇA MASCULINA GOLEIRO / CO.136.20 | E21: 40 | G21: =IF(E21="","",IF(F21="","",(E21*F21))) -> 
B26: ITEM | C26: IMAGEM ILUSTRATIUVA | D26: MODELO | E26: QTD | F26: VALOR UNITÁRIO | G26: VALOR TOTAL
B27: 5 | D27: CALÇA FEMININA GOLEIRO / CO.148.20 | E27: 40 | G27: =IF(E27="","",IF(F27="","",(E27*F27))) -> 
B32: ITEM | C32: IMAGEM ILUSTRATIUVA | D32: MODELO | E32: QTD | F32: VALOR UNITÁRIO | G32: VALOR TOTAL
B33: 6 | D33: CAMISETA ACOLCHOADA FEMININA / CO.137.20 (AMARELA) | E33: 40 | G33: =IF(E33="","",IF(F33="","",(E33*F33))) -> 
B38: ITEM | C38: IMAGEM ILUSTRATIUVA | D38: MODELO | E38: QTD | F38: VALOR UNITÁRIO | G38: VALOR TOTAL
B39: 7 | D39: CAMISETA ACOLCHOADA FEMININA / CO.138.20 (VERDE) | E39: 40 | G39: =IF(E39="","",IF(F39="","",(E39*F39))) -> 
B44: ITEM | C44: IMAGEM ILUSTRATIUVA | D44: MODELO | E44: QTD | F44: VALOR UNITÁRIO | G44: VALOR TOTAL
B45: 8 | D45: CAMISETA ACOLCHOADA FEMININA / CO.139.20 (AZUL) | E45: 40 | G45: =IF(E45="","",IF(F45="","",(E45*F45))) -> 
B50: TOTAL | G50: =IF(SUM(G3,G9,G15,G21,G27,G33,G39,G45)=0,"",SUM(G3,G9,G15,G21,G27,G33,G39,G45)) -> 
B52: Valor da Proposta: | C52: =G50 -> 
B54: ='00.Orçamento Resumo'!A7 -> EMPRESA: | C54: =IF('00.Orçamento Resumo'!$B$7="","",'00.Orçamento Resumo'!$B$7) -> 
B55: ='00.Orçamento Resumo'!A8 -> CNPJ: | C55: =IF('00.Orçamento Resumo'!$B$8="","",'00.Orçamento Resumo'!$B$8) -> 

Sheet 11. HALTEROFILISMO
B1: 11. HALTEROFILISMO
B2: ITEM | C2: IMAGEM ILUSTRATIUVA | D2: MODELO | E2: QTD | F2: VALOR UNITÁRIO | G2: VALOR TOTAL
B3: 1 | D3: CAMISETA MASCULINA / HT.098.20 | E3: 170 | G3: =IF(E3="","",IF(F3="","",(E3*F3))) -> 
B8: ITEM | C8: IMAGEM ILUSTRATIUVA | D8: MODELO | E8: QTD | F8: VALOR UNITÁRIO | G8: VALOR TOTAL
B9: 2 | D9: CAMISETA FEMININA / HT.100.20 | E9: 170 | G9: =IF(E9="","",IF(F9="","",(E9*F9))) -> 
B14: TOTAL | G14: =IF(SUM(G3,G9,)=0,"",SUM(G3,G9)) -> 
B16: Valor da Proposta: | C16: =G14 -> 
B18: ='00.Orçamento Resumo'!A7 -> EMPRESA: | C18: =IF('00.Orçamento Resumo'!$B$7="","",'00.Orçamento Resumo'!$B$7) -> 
B19: ='00.Orçamento Resumo'!A8 -> CNPJ: | C19: =IF('00.Orçamento Resumo'!$B$8="","",'00.Orçamento Resumo'!$B$8) -> 

Sheet 12. TÊNIS DE MESA
B1: 12. TÊNIS DE MESA
B2: ITEM | C2: IMAGEM ILUSTRATIUVA | D2: MODELO | E2: QTD | F2: VALOR UNITÁRIO | G2: VALOR TOTAL
B3: 1 | D3: CAMISETA MASCULINA / CO.052.20 (AMARELA) | E3: 118 | G3: =IF(E3="","",IF(F3="","",(E3*F3))) -> 
B8: ITEM | C8: IMAGEM ILUSTRATIUVA | D8: MODELO | E8: QTD | F8: VALOR UNITÁRIO | G8: VALOR TOTAL
B9: 2 | D9: CAMISETA MASCULINA / CO.053.20 (VERDE) | E9: 118 | G9: =IF(E9="","",IF(F9="","",(E9*F9))) -> 
B14: ITEM | C14: IMAGEM ILUSTRATIUVA | D14: MODELO | E14: QTD | F14: VALOR UNITÁRIO | G14: VALOR TOTAL
B15: 3 | D15: CAMISETA MASCULINA / CO.054.20 (AZUL) | E15: 118 | G15: =IF(E15="","",IF(F15="","",(E15*F15))) -> 
B20: ITEM | C20: IMAGEM ILUSTRATIUVA | D20: MODELO | E20: QTD | F20: VALOR UNITÁRIO | G20: VALOR TOTAL
B21: 4 | D21: BERMUDA MASCULINA / CO.066.20 | E21: 118 | G21: =IF(E21="","",IF(F21="","",(E21*F21))) -> 
B26: ITEM | C26: IMAGEM ILUSTRATIUVA | D26: MODELO | E26: QTD | F26: VALOR UNITÁRIO | G26: VALOR TOTAL
B27: 5 | D27: CALÇA MASCULINA / CO.146.20 | E27: 40 | G27: =IF(E27="","",IF(F27="","",(E27*F27))) -> 
B32: ITEM | C32: IMAGEM ILUSTRATIUVA | D32: MODELO | E32: QTD | F32: VALOR UNITÁRIO | G32: VALOR TOTAL
B33: 6 | D33: CAMISETA FEMININA / CO.080.20 (AMARELO) | E33: 82 | G33: =IF(E33="","",IF(F33="","",(E33*F33))) -> 
B38: ITEM | C38: IMAGEM ILUSTRATIUVA | D38: MODELO | E38: QTD | F38: VALOR UNITÁRIO | G38: VALOR TOTAL
B39: 7 | D39: CAMISETA FEMININA / CO.081.20 (VERDE) | E39: 82 | G39: =IF(E39="","",IF(F39="","",(E39*F39))) -> 
B44: ITEM | C44: IMAGEM ILUSTRATIUVA | D44: MODELO | E44: QTD | F44: VALOR UNITÁRIO | G44: VALOR TOTAL
B45: 8 | D45: CAMISETA FEMININA / CO.082.20 (AZUL) | E45: 82 | G45: =IF(E45="","",IF(F45="","",(E45*F45))) -> 
B50: ITEM | C50: IMAGEM ILUSTRATIUVA | D50: MODELO | E50: QTD | F50: VALOR UNITÁRIO | G50: VALOR TOTAL
B51: 9 | D51: SHORT SAIA FEMININO / CO.085.20 | E51: 82 | G51: =IF(E51="","",IF(F51="","",(E51*F51))) -> 
B56: TOTAL | G56: =IF(SUM(G3,G9,G15,G21,G27,G33,G39,G45,G51)=0,"",SUM(G3,G9,G15,G21,G27,G33,G39,G45,G51)) -> 
B58: Valor da Proposta: | C58: =G56 -> 
B60: ='00.Orçamento Resumo'!A7 -> EMPRESA: | C60: =IF('00.Orçamento Resumo'!$B$7="","",'00.Orçamento Resumo'!$B$7) -> 
B61: ='00.Orçamento Resumo'!A8 -> CNPJ: | C61: =IF('00.Orçamento Resumo'!$B$8="","",'00.Orçamento Resumo'!$B$8) -> 

Sheet 13. TÊNIS EM CR
B1: 13. TÊNIS EM CR
B2: ITEM | C2: IMAGEM ILUSTRATIUVA | D2: MODELO | E2: QTD | F2: VALOR UNITÁRIO | G2: VALOR TOTAL
B3: 1 | D3: CAMISETA MASCULINA / CO.052.20 (AMARELA) | E3: 16 | G3: =IF(E3="","",IF(F3="","",(E3*F3))) -> 
B8: ITEM | C8: IMAGEM ILUSTRATIUVA | D8: MODELO | E8: QTD | F8: VALOR UNITÁRIO | G8: VALOR TOTAL
B9: 2 | D9: CAMISETA MASCULINA / CO.053.20 (VERDE) | E9: 16 | G9: =IF(E9="","",IF(F9="","",(E9*F9))) -> 
B14: ITEM | C14: IMAGEM ILUSTRATIUVA | D14: MODELO | E14: QTD | F14: VALOR UNITÁRIO | G14: VALOR TOTAL
B15: 3 | D15: CAMISETA MASCULINA / CO.054.20 (AZUL) | E15: 16 | G15: =IF(E15="","",IF(F15="","",(E15*F15))) -> 
B20: ITEM | C20: IMAGEM ILUSTRATIUVA | D20: MODELO | E20: QTD | F20: VALOR UNITÁRIO | G20: VALOR TOTAL
B21: 4 | D21: BERMUDA MASCULINA / CO.066.20 | E21: 16 | G21: =IF(E21="","",IF(F21="","",(E21*F21))) -> 
B26: ITEM | C26: IMAGEM ILUSTRATIUVA | D26: MODELO | E26: QTD | F26: VALOR UNITÁRIO | G26: VALOR TOTAL
B27: 5 | D27: CALÇA MASCULINA / CO.146.20 | E27: 16 | G27: =IF(E27="","",IF(F27="","",(E27*F27))) -> 
B32: ITEM | C32: IMAGEM ILUSTRATIUVA | D32: MODELO | E32: QTD | F32: VALOR UNITÁRIO | G32: VALOR TOTAL
B33: 6 | D33: CAMISETA FEMININA / CO.080.20 (AMARELO) | E33: 8 | G33: =IF(E33="","",IF(F33="","",(E33*F33))) -> 
B38: ITEM | C38: IMAGEM ILUSTRATIUVA | D38: MODELO | E38: QTD | F38: VALOR UNITÁRIO | G38: VALOR TOTAL
B39: 7 | D39: CAMISETA FEMININA / CO.081.20 (VERDE) | E39: 8 | G39: =IF(E39="","",IF(F39="","",(E39*F39))) -> 
B44: ITEM | C44: IMAGEM ILUSTRATIUVA | D44: MODELO | E44: QTD | F44: VALOR UNITÁRIO | G44: VALOR TOTAL
B45: 8 | D45: CAMISETA FEMININA / CO.082.20 (AZUL) | E45: 8 | G45: =IF(E45="","",IF(F45="","",(E45*F45))) -> 
B50: ITEM | C50: IMAGEM ILUSTRATIUVA | D50: MODELO | E50: QTD | F50: VALOR UNITÁRIO | G50: VALOR TOTAL
B51: 9 | D51: SHORT SAIA FEMININO / CO.085.20 | E51: 8 | G51: =IF(E51="","",IF(F51="","",(E51*F51))) -> 
B56: TOTAL | G56: =IF(SUM(G3,G9,G15,G21,G27,G33,G39,G45,G51)=0,"",SUM(G3,G9,G15,G21,G27,G33,G39,G45,G51)) -> 
B58: Valor da Proposta: | C58: =G56 -> 
B60: ='00.Orçamento Resumo'!A7 -> EMPRESA: | C60: =IF('00.Orçamento Resumo'!$B$7="","",'00.Orçamento Resumo'!$B$7) -> 
B61: ='00.Orçamento Resumo'!A8 -> CNPJ: | C61: =IF('00.Orçamento Resumo'!$B$8="","",'00.Orçamento Resumo'!$B$8) -> 

Sheet 14. TIRO COM ARCO
B1: 14. TIRO COM ARCO
B2: ITEM | C2: IMAGEM ILUSTRATIUVA | D2: MODELO | E2: QTD | F2: VALOR UNITÁRIO | G2: VALOR TOTAL
B3: 1 | D3: CAMISETA MASCULINA / CO.052.20 (AMARELA) | E3: 20 | G3: =IF(E3="","",IF(F3="","",(E3*F3))) -> 
B8: ITEM | C8: IMAGEM ILUSTRATIUVA | D8: MODELO | E8: QTD | F8: VALOR UNITÁRIO | G8: VALOR TOTAL
B9: 2 | D9: CAMISETA MASCULINA / CO.053.20 (VERDE) | E9: 20 | G9: =IF(E9="","",IF(F9="","",(E9*F9))) -> 
B14: ITEM | C14: IMAGEM ILUSTRATIUVA | D14: MODELO | E14: QTD | F14: VALOR UNITÁRIO | G14: VALOR TOTAL
B15: 3 | D15: CAMISETA MASCULINA / CO.054.20 (AZUL) | E15: 20 | G15: =IF(E15="","",IF(F15="","",(E15*F15))) -> 
B20: ITEM | C20: IMAGEM ILUSTRATIUVA | D20: MODELO | E20: QTD | F20: VALOR UNITÁRIO | G20: VALOR TOTAL
B21: 4 | D21: CAMISETA FEMININA / CO.080.20 (AMARELA) | E21: 20 | G21: =IF(E21="","",IF(F21="","",(E21*F21))) -> 
B26: ITEM | C26: IMAGEM ILUSTRATIUVA | D26: MODELO | E26: QTD | F26: VALOR UNITÁRIO | G26: VALOR TOTAL
B27: 5 | D27: CAMISETA FEMININA / CO.081.20 (VERDE) | E27: 20 | G27: =IF(E27="","",IF(F27="","",(E27*F27))) -> 
B32: ITEM | C32: IMAGEM ILUSTRATIUVA | D32: MODELO | E32: QTD | F32: VALOR UNITÁRIO | G32: VALOR TOTAL
B33: 6 | D33: CAMISETA FEMININA / CO.082.20 (AZUL) | E33: 20 | G33: =IF(E33="","",IF(F33="","",(E33*F33))) -> 
B38: ITEM | C38: IMAGEM ILUSTRATIUVA | D38: MODELO | E38: QTD | F38: VALOR UNITÁRIO | G38: VALOR TOTAL
B39: 7 | D39: MANGUITO / CO.141.20 (BRANCO) | E39: 40 | G39: =IF(E39="","",IF(F39="","",(E39*F39))) -> 
B44: TOTAL | G44: =IF(SUM(G3,G9,G15,G21,G27,G33,G39)=0,"",SUM(G3,G9,G15,G21,G27,G33,G39)) -> 
B46: Valor da Proposta: | C46: =G44 -> 
B48: ='00.Orçamento Resumo'!A7 -> EMPRESA: | C48: =IF('00.Orçamento Resumo'!$B$7="","",'00.Orçamento Resumo'!$B$7) -> 
B49: ='00.Orçamento Resumo'!A8 -> CNPJ: | C49: =IF('00.Orçamento Resumo'!$B$8="","",'00.Orçamento Resumo'!$B$8) -> 

Sheet 15. TIRO ESPORTIVO
B1: 15. TIRO ESPORTIVO
B2: ITEM | C2: IMAGEM ILUSTRATIUVA | D2: MODELO | E2: QTD | F2: VALOR UNITÁRIO | G2: VALOR TOTAL
B3: 1 | D3: CAMISETA MASCULINA / CO.052.20 (AMARELA) | E3: 30 | G3: =IF(E3="","",IF(F3="","",(E3*F3))) -> 
B8: ITEM | C8: IMAGEM ILUSTRATIUVA | D8: MODELO | E8: QTD | F8: VALOR UNITÁRIO | G8: VALOR TOTAL
B9: 2 | D9: CAMISETA MASCULINA / CO.053.20 (VERDE) | E9: 30 | G9: =IF(E9="","",IF(F9="","",(E9*F9))) -> 
B14: ITEM | C14: IMAGEM ILUSTRATIUVA | D14: MODELO | E14: QTD | F14: VALOR UNITÁRIO | G14: VALOR TOTAL
B15: 3 | D15: CAMISETA MASCULINA / CO.054.20 (AZUL) | E15: 30 | G15: =IF(E15="","",IF(F15="","",(E15*F15))) -> 
B20: ITEM | C20: IMAGEM ILUSTRATIUVA | D20: MODELO | E20: QTD | F20: VALOR UNITÁRIO | G20: VALOR TOTAL
B21: 4 | D21: CAMISETA FEMININA / CO.080.20 (AMARELA) | E21: 30 | G21: =IF(E21="","",IF(F21="","",(E21*F21))) -> 
B26: ITEM | C26: IMAGEM ILUSTRATIUVA | D26: MODELO | E26: QTD | F26: VALOR UNITÁRIO | G26: VALOR TOTAL
B27: 5 | D27: CAMISETA FEMININA / CO.081.20 (VERDE) | E27: 30 | G27: =IF(E27="","",IF(F27="","",(E27*F27))) -> 
B32: ITEM | C32: IMAGEM ILUSTRATIUVA | D32: MODELO | E32: QTD | F32: VALOR UNITÁRIO | G32: VALOR TOTAL
B33: 6 | D33: CAMISETA FEMININA / CO.082.20 (AZUL) | E33: 30 | G33: =IF(E33="","",IF(F33="","",(E33*F33))) -> 
B38: TOTAL | G38: =IF(SUM(G3,G9,G15,G21,G27,G33)=0,"",SUM(G3,G9,G15,G21,G27,G33)) -> 
B40: Valor da Proposta: | C40: =G38 -> 
B42: ='00.Orçamento Resumo'!A7 -> EMPRESA: | C42: =IF('00.Orçamento Resumo'!$B$7="","",'00.Orçamento Resumo'!$B$7) -> 
B43: ='00.Orçamento Resumo'!A8 -> CNPJ: | C43: =IF('00.Orçamento Resumo'!$B$8="","",'00.Orçamento Resumo'!$B$8) -> 

Sheet 16. VÔLEI SENTADO
B1: 16. VÔLEI SENTADO
B2: ITEM | C2: IMAGEM ILUSTRATIUVA | D2: MODELO | E2: QTD | F2: VALOR UNITÁRIO | G2: VALOR TOTAL
B3: 1 | D3: REGATA MASCULINA / CO.055.20 (AMARELA) | E3: 82 | G3: =IF(E3="","",IF(F3="","",(E3*F3))) -> 
B8: ITEM | C8: IMAGEM ILUSTRATIUVA | D8: MODELO | E8: QTD | F8: VALOR UNITÁRIO | G8: VALOR TOTAL
B9: 2 | D9: REGATA MASCULINA / CO.056.20 (VERDE) | E9: 82 | G9: =IF(E9="","",IF(F9="","",(E9*F9))) -> 
B14: ITEM | C14: IMAGEM ILUSTRATIUVA | D14: MODELO | E14: QTD | F14: VALOR UNITÁRIO | G14: VALOR TOTAL
B15: 3 | D15: REGATA MASCULINA / CO.057.20 (AZUL) | E15: 82 | G15: =IF(E15="","",IF(F15="","",(E15*F15))) -> 
B20: ITEM | C20: IMAGEM ILUSTRATIUVA | D20: MODELO | E20: QTD | F20: VALOR UNITÁRIO | G20: VALOR TOTAL
B21: 4 | D21: REGATA MASCULINA / CO.108.20 (BRANCA) | E21: 82 | G21: =IF(E21="","",IF(F21="","",(E21*F21))) -> 
B26: ITEM | C26: IMAGEM ILUSTRATIUVA | D26: MODELO | E26: QTD | F26: VALOR UNITÁRIO | G26: VALOR TOTAL
B27: 5 | D27: BERMUDA MASCULINA / CO.066.20 | E27: 82 | G27: =IF(E27="","",IF(F27="","",(E27*F27))) -> 
B32: ITEM | C32: IMAGEM ILUSTRATIUVA | D32: MODELO | E32: QTD | F32: VALOR UNITÁRIO | G32: VALOR TOTAL
B33: 6 | D33: CALÇA MASCULINA OVERSIZED / | E33: 82 | G33: =IF(E33="","",IF(F33="","",(E33*F33))) -> 
B38: ITEM | C38: IMAGEM ILUSTRATIUVA | D38: MODELO | E38: QTD | F38: VALOR UNITÁRIO | G38: VALOR TOTAL
B39: 7 | D39: CALÇA MASCULINA OVERSIZED / | E39: 82 | G39: =IF(E39="","",IF(F39="","",(E39*F39))) -> 
B44: ITEM | C44: IMAGEM ILUSTRATIUVA | D44: MODELO | E44: QTD | F44: VALOR UNITÁRIO | G44: VALOR TOTAL
B45: 8 | D45: MANGUITO / CO.141.20 (BRANCO) | E45: 600 | G45: =IF(E45="","",IF(F45="","",(E45*F45))) -> 
B50: ITEM | C50: IMAGEM ILUSTRATIUVA | D50: MODELO | E50: QTD | F50: VALOR UNITÁRIO | G50: VALOR TOTAL
B51: 9 | D51: CAMISETA SEGUNDA PELE MASCULINA / CO.132.20 | E51: 82 | G51: =IF(E51="","",IF(F51="","",(E51*F51))) -> 
B56: ITEM | C56: IMAGEM ILUSTRATIUVA | D56: MODELO | E56: QTD | F56: VALOR UNITÁRIO | G56: VALOR TOTAL
B57: 10 | D57: CAMISETA FEMININA / CO.109.20 (AMARELA) | E57: 80 | G57: =IF(E57="","",IF(F57="","",(E57*F57))) -> 
B62: ITEM | C62: IMAGEM ILUSTRATIUVA | D62: MODELO | E62: QTD | F62: VALOR UNITÁRIO | G62: VALOR TOTAL
B63: 11 | D63: CAMISETA FEMININA / CO.110.20 (AZUL) | E63: 80 | G63: =IF(E63="","",IF(F63="","",(E63*F63))) -> 
B68: ITEM | C68: IMAGEM ILUSTRATIUVA | D68: MODELO | E68: QTD | F68: VALOR UNITÁRIO | G68: VALOR TOTAL
B69: 12 | D69: CAMISETA FEMININA / CO.110.20 (VERDE) | E69: 80 | G69: =IF(E69="","",IF(F69="","",(E69*F69))) -> 
B74: ITEM | C74: IMAGEM ILUSTRATIUVA | D74: MODELO | E74: QTD | F74: VALOR UNITÁRIO | G74: VALOR TOTAL
B75: 13 | D75: CAMISETA FEMININA / CO.110.20 (BRANCA) | E75: 80 | G75: =IF(E75="","",IF(F75="","",(E75*F75))) -> 
B80: ITEM | C80: IMAGEM ILUSTRATIUVA | D80: MODELO | E80: QTD | F80: VALOR UNITÁRIO | G80: VALOR TOTAL
B81: 14 | D81: TOP FEMININO / PA.042.20 (AZUL) | E81: 80 | G81: =IF(E81="","",IF(F81="","",(E81*F81))) -> 
B86: ITEM | C86: IMAGEM ILUSTRATIUVA | D86: MODELO | E86: QTD | F86: VALOR UNITÁRIO | G86: VALOR TOTAL
B87: 15 | D87: CALÇA FEMININA OVERSIZED / | E87: 80 | G87: =IF(E87="","",IF(F87="","",(E87*F87))) -> 
B92: ITEM | C92: IMAGEM ILUSTRATIUVA | D92: MODELO | E92: QTD | F92: VALOR UNITÁRIO | G92: VALOR TOTAL
B93: 16 | D93: LEGGING FEMININA / CO.075.20 | E93: 80 | G93: =IF(E93="","",IF(F93="","",(E93*F93))) -> 
B98: ITEM | C98: IMAGEM ILUSTRATIUVA | D98: MODELO | E98: QTD | F98: VALOR UNITÁRIO | G98: VALOR TOTAL
B99: 17 | D99: CAMISETA SEGUNDA PELE FEMININA / | E99: 80 | G99: =IF(E99="","",IF(F99="","",(E99*F99))) -> 
B104: TOTAL | G104: =IF(SUM(G3,G9,G15,G21,G27,G33,G39,G45,G51,G57,G63,G69,G75,G81,G87,G93,G99)=0,"",SUM(G3,G9,G15,G21,G27,G33,G39,G45,G51,G57,G63,G69,G75,G81,G87,G93,G99)) -> 
B106: Valor da Proposta: | C106: =G104 -> 
B108: ='00.Orçamento Resumo'!A7 -> EMPRESA: | C108: =IF('00.Orçamento Resumo'!$B$7="","",'00.Orçamento Resumo'!$B$7) -> 
B109: ='00.Orçamento Resumo'!A8 -> CNPJ: | C109: =IF('00.Orçamento Resumo'!$B$8="","",'00.Orçamento Resumo'!$B$8) -> 

Sheet 17. LOTERIAS CAIXA
B1: LOTERIAS CAIXAS
B2: ITEM | C2: IMAGEM ILUSTRATIUVA | D2: MODELO | E2: QTD | F2: VALOR UNITÁRIO | G2: VALOR TOTAL
B3: 1 | C3: Design será compartilhado posteriomente | D3: QUEBRA VENTO FEMININO | E3: 150 | G3: =IF(E3="","",IF(F3="","",(E3*F3))) -> 
B8: ITEM | C8: IMAGEM ILUSTRATIUVA | D8: MODELO | E8: QTD | F8: VALOR UNITÁRIO | G8: VALOR TOTAL
B9: 2 | C9: Design será compartilhado posteriomente | D9: CALÇA FEMININO | E9: 150 | G9: =IF(E9="","",IF(F9="","",(E9*F9))) -> 
B14: ITEM | C14: IMAGEM ILUSTRATIUVA | D14: MODELO | E14: QTD | F14: VALOR UNITÁRIO | G14: VALOR TOTAL
B15: 3 | C15: Design será compartilhado posteriomente | D15: BLUSÃO FEMININO | E15: 150 | G15: =IF(E15="","",IF(F15="","",(E15*F15))) -> 
B20: ITEM | C20: IMAGEM ILUSTRATIUVA | D20: MODELO | E20: QTD | F20: VALOR UNITÁRIO | G20: VALOR TOTAL
B21: 4 | C21: Design será compartilhado posteriomente | D21: CALÇA FEMININO | E21: 150 | G21: =IF(E21="","",IF(F21="","",(E21*F21))) -> 
B26: ITEM | C26: IMAGEM ILUSTRATIUVA | D26: MODELO | E26: QTD | F26: VALOR UNITÁRIO | G26: VALOR TOTAL
B27: 5 | C27: Design será compartilhado posteriomente | D27: CAMISETA FEMININO | E27: 625 | G27: =IF(E27="","",IF(F27="","",(E27*F27))) -> 
B32: ITEM | C32: IMAGEM ILUSTRATIUVA | D32: MODELO | E32: QTD | F32: VALOR UNITÁRIO | G32: VALOR TOTAL
B33: 6 | C33: Design será compartilhado posteriomente | D33: REGATA FEMININO | E33: 450 | G33: =IF(E33="","",IF(F33="","",(E33*F33))) -> 
B38: ITEM | C38: IMAGEM ILUSTRATIUVA | D38: MODELO | E38: QTD | F38: VALOR UNITÁRIO | G38: VALOR TOTAL
B39: 7 | C39: Design será compartilhado posteriomente | D39: CAMISA POLO POLIESTER FEMININO | E39: 150 | G39: =IF(E39="","",IF(F39="","",(E39*F39))) -> 
B44: ITEM | C44: IMAGEM ILUSTRATIUVA | D44: MODELO | E44: QTD | F44: VALOR UNITÁRIO | G44: VALOR TOTAL
B45: 8 | C45: Design será compartilhado posteriomente | D45: SHORT FEMININO | E45: 300 | G45: =IF(E45="","",IF(F45="","",(E45*F45))) -> 
B50: ITEM | C50: IMAGEM ILUSTRATIUVA | D50: MODELO | E50: QTD | F50: VALOR UNITÁRIO | G50: VALOR TOTAL
B51: 9 | C51: Design será compartilhado posteriomente | D51: LEGGING FEMININO | E51: 300 | G51: =IF(E51="","",IF(F51="","",(E51*F51))) -> 
B56: CAIXA - MASCULINO
B57: ITEM | C57: IMAGEM ILUSTRATIUVA | D57: MODELO | E57: QTD | F57: VALOR UNITÁRIO | G57: VALOR TOTAL
B58: 10 | C58: Design será compartilhado posteriomente | D58: QUEBRA VENTO MASCULINO | E58: 150 | G58: =IF(E58="","",IF(F58="","",(E58*F58))) -> 
B63: ITEM | C63: IMAGEM ILUSTRATIUVA | D63: MODELO | E63: QTD | F63: VALOR UNITÁRIO | G63: VALOR TOTAL
B64: 11 | C64: Design será compartilhado posteriomente | D64: CALÇA MASCULINA | E64: 150 | G64: =IF(E64="","",IF(F64="","",(E64*F64))) -> 
B69: ITEM | C69: IMAGEM ILUSTRATIUVA | D69: MODELO | E69: QTD | F69: VALOR UNITÁRIO | G69: VALOR TOTAL
B70: 12 | C70: Design será compartilhado posteriomente | D70: BLUSÃO MASCULINO | E70: 150 | G70: =IF(E70="","",IF(F70="","",(E70*F70))) -> 
B75: ITEM | C75: IMAGEM ILUSTRATIUVA | D75: MODELO | E75: QTD | F75: VALOR UNITÁRIO | G75: VALOR TOTAL
B76: 13 | C76: Design será compartilhado posteriomente | D76: CALÇA MASCULINA | E76: 150 | G76: =IF(E76="","",IF(F76="","",(E76*F76))) -> 
B81: ITEM | C81: IMAGEM ILUSTRATIUVA | D81: MODELO | E81: QTD | F81: VALOR UNITÁRIO | G81: VALOR TOTAL
B82: 14 | C82: Design será compartilhado posteriomente | D82: CAMISETA MASCULINA | E82: 625 | G82: =IF(E82="","",IF(F82="","",(E82*F82))) -> 
B87: ITEM | C87: IMAGEM ILUSTRATIUVA | D87: MODELO | E87: QTD | F87: VALOR UNITÁRIO | G87: VALOR TOTAL
B88: 15 | C88: Design será compartilhado posteriomente | D88: REGATA MASCULINA | E88: 450 | G88: =IF(E88="","",IF(F88="","",(E88*F88))) -> 
B93: ITEM | C93: IMAGEM ILUSTRATIUVA | D93: MODELO | E93: QTD | F93: VALOR UNITÁRIO | G93: VALOR TOTAL
B94: 16 | C94: Design será compartilhado posteriomente | D94: CAMISA POLO POLIESTER MASCULINA | E94: 150 | G94: =IF(E94="","",IF(F94="","",(E94*F94))) -> 
B99: ITEM | C99: IMAGEM ILUSTRATIUVA | D99: MODELO | E99: QTD | F99: VALOR UNITÁRIO | G99: VALOR TOTAL
B100: 17 | C100: Design será compartilhado posteriomente | D100: SHORT MASCULINO | E100: 450 | G100: =IF(E100="","",IF(F100="","",(E100*F100))) -> 
B105: TOTAL | G105: =IF(SUM(G3,G9,G15,G21,G27,G33,G39,G45,G51,G58,G64,G70,G76,G82,G88,G94,G100)=0,"",SUM(G3,G9,G15,G21,G27,G33,G39,G45,G51,G58,G64,G70,G76,G82,G88,G94,G100)) -> 
B107: Valor da Proposta: | C107: =G105 -> 
B109: ='00.Orçamento Resumo'!A7 -> EMPRESA: | C109: =IF('00.Orçamento Resumo'!$B$7="","",'00.Orçamento Resumo'!$B$7) -> 
B110: ='00.Orçamento Resumo'!A8 -> CNPJ: | C110: =IF('00.Orçamento Resumo'!$B$8="","",'00.Orçamento Resumo'!$B$8) -> 

Sheet 18. LOT. CAIXA E BRASKEM
B1: LOTERIAS CAIXAS E BRASKEM
B2: ITEM | C2: IMAGEM ILUSTRATIUVA | D2: MODELO | E2: QTD | F2: VALOR UNITÁRIO | G2: VALOR TOTAL
B3: 1 | C3: Design será compartilhado posteriomente | D3: QUEBRA VENTO FEMININO | E3: 100 | G3: =IF(E3="","",IF(F3="","",(E3*F3))) -> 
B8: ITEM | C8: IMAGEM ILUSTRATIUVA | D8: MODELO | E8: QTD | F8: VALOR UNITÁRIO | G8: VALOR TOTAL
B9: 2 | C9: Design será compartilhado posteriomente | D9: CALÇA FEMININO | E9: 100 | G9: =IF(E9="","",IF(F9="","",(E9*F9))) -> 
B14: ITEM | C14: IMAGEM ILUSTRATIUVA | D14: MODELO | E14: QTD | F14: VALOR UNITÁRIO | G14: VALOR TOTAL
B15: 3 | C15: Design será compartilhado posteriomente | D15: BLUSÃO FEMININO | E15: 100 | G15: =IF(E15="","",IF(F15="","",(E15*F15))) -> 
B20: ITEM | C20: IMAGEM ILUSTRATIUVA | D20: MODELO | E20: QTD | F20: VALOR UNITÁRIO | G20: VALOR TOTAL
B21: 4 | C21: Design será compartilhado posteriomente | D21: CALÇA FEMININO | E21: 100 | G21: =IF(E21="","",IF(F21="","",(E21*F21))) -> 
B26: ITEM | C26: IMAGEM ILUSTRATIUVA | D26: MODELO | E26: QTD | F26: VALOR UNITÁRIO | G26: VALOR TOTAL
B27: 5 | C27: Design será compartilhado posteriomente | D27: CAMISETA FEMININO | E27: 300 | G27: =IF(E27="","",IF(F27="","",(E27*F27))) -> 
B32: ITEM | C32: IMAGEM ILUSTRATIUVA | D32: MODELO | E32: QTD | F32: VALOR UNITÁRIO | G32: VALOR TOTAL
B33: 6 | C33: Design será compartilhado posteriomente | D33: REGATA FEMININO PA.034.20 | E33: 300 | G33: =IF(E33="","",IF(F33="","",(E33*F33))) -> 
B38: ITEM | C38: IMAGEM ILUSTRATIUVA | D38: MODELO | E38: QTD | F38: VALOR UNITÁRIO | G38: VALOR TOTAL
B39: 7 | C39: Design será compartilhado posteriomente | D39: CAMISA POLO POLIESTER FEMININO | E39: 100 | G39: =IF(E39="","",IF(F39="","",(E39*F39))) -> 
B44: ITEM | C44: IMAGEM ILUSTRATIUVA | D44: MODELO | E44: QTD | F44: VALOR UNITÁRIO | G44: VALOR TOTAL
B45: 8 | C45: Design será compartilhado posteriomente | D45: SHORT FEMININO | E45: 200 | G45: =IF(E45="","",IF(F45="","",(E45*F45))) -> 
B50: ITEM | C50: IMAGEM ILUSTRATIUVA | D50: MODELO | E50: QTD | F50: VALOR UNITÁRIO | G50: VALOR TOTAL
B51: 9 | C51: Design será compartilhado posteriomente | D51: LEGGING FEMININO | E51: 200 | G51: =IF(E51="","",IF(F51="","",(E51*F51))) -> 
B56: BRASKEM - MASCULINO
B57: ITEM | C57: IMAGEM ILUSTRATIUVA | D57: MODELO | E57: QTD | F57: VALOR UNITÁRIO | G57: VALOR TOTAL
B58: 10 | C58: Design será compartilhado posteriomente | D58: QUEBRA VENTO MASCULINO | E58: 100 | G58: =IF(E58="","",IF(F58="","",(E58*F58))) -> 
B63: ITEM | C63: IMAGEM ILUSTRATIUVA | D63: MODELO | E63: QTD | F63: VALOR UNITÁRIO | G63: VALOR TOTAL
B64: 11 | C64: Design será compartilhado posteriomente | D64: CALÇA MASCULINA | E64: 100 | G64: =IF(E64="","",IF(F64="","",(E64*F64))) -> 
B69: ITEM | C69: IMAGEM ILUSTRATIUVA | D69: MODELO | E69: QTD | F69: VALOR UNITÁRIO | G69: VALOR TOTAL
B70: 12 | C70: Design será compartilhado posteriomente | D70: BLUSÃO MASCULINO | E70: 100 | G70: =IF(E70="","",IF(F70="","",(E70*F70))) -> 
B75: ITEM | C75: IMAGEM ILUSTRATIUVA | D75: MODELO | E75: QTD | F75: VALOR UNITÁRIO | G75: VALOR TOTAL
B76: 13 | C76: Design será compartilhado posteriomente | D76: CALÇA MASCULINA | E76: 100 | G76: =IF(E76="","",IF(F76="","",(E76*F76))) -> 
B81: ITEM | C81: IMAGEM ILUSTRATIUVA | D81: MODELO | E81: QTD | F81: VALOR UNITÁRIO | G81: VALOR TOTAL
B82: 14 | C82: Design será compartilhado posteriomente | D82: CAMISETA MASCULINA | E82: 300 | G82: =IF(E82="","",IF(F82="","",(E82*F82))) -> 
B87: ITEM | C87: IMAGEM ILUSTRATIUVA | D87: MODELO | E87: QTD | F87: VALOR UNITÁRIO | G87: VALOR TOTAL
B88: 15 | C88: Design será compartilhado posteriomente | D88: REGATA MASCULINA | E88: 300 | G88: =IF(E88="","",IF(F88="","",(E88*F88))) -> 
B93: ITEM | C93: IMAGEM ILUSTRATIUVA | D93: MODELO | E93: QTD | F93: VALOR UNITÁRIO | G93: VALOR TOTAL
B94: 16 | C94: Design será compartilhado posteriomente | D94: CAMISA POLO POLIESTER MASCULINA | E94: 100 | G94: =IF(E94="","",IF(F94="","",(E94*F94))) -> 
B99: ITEM | C99: IMAGEM ILUSTRATIUVA | D99: MODELO | E99: QTD | F99: VALOR UNITÁRIO | G99: VALOR TOTAL
B100: 17 | C100: Design será compartilhado posteriomente | D100: SHORT MASCULINO | E100: 300 | G100: =IF(E100="","",IF(F100="","",(E100*F100))) -> 
B105: TOTAL | G105: =IF(SUM(G3,G9,G15,G21,G27,G33,G39,G45,G51,G58,G64,G70,G76,G82,G88,G94,G100)=0,"",SUM(G3,G9,G15,G21,G27,G33,G39,G45,G51,G58,G64,G70,G76,G82,G88,G94,G100)) -> 
B107: Valor da Proposta: | C107: =G105 -> 
B109: ='00.Orçamento Resumo'!A7 -> EMPRESA: | C109: =IF('00.Orçamento Resumo'!$B$7="","",'00.Orçamento Resumo'!$B$7) -> 
B110: ='00.Orçamento Resumo'!A8 -> CNPJ: | C110: =IF('00.Orçamento Resumo'!$B$8="","",'00.Orçamento Resumo'!$B$8) -> 

Sheet 19. TIME SÃO PAULO
B1: TIME SÃO PAULO
B2: ITEM | C2: IMAGEM ILUSTRATIUVA | D2: MODELO | E2: QTD | F2: VALOR UNITÁRIO | G2: VALOR TOTAL
B3: 1 | C3: Design será compartilhado posteriomente | D3: CAMISETA FEMININA | E3: 300 | G3: =IF(E3="","",IF(F3="","",(E3*F3))) -> 
B8: ITEM | C8: IMAGEM ILUSTRATIUVA | D8: MODELO | E8: QTD | F8: VALOR UNITÁRIO | G8: VALOR TOTAL
B9: 2 | C9: Design será compartilhado posteriomente | D9: REGATA FEMININA | E9: 150 | G9: =IF(E9="","",IF(F9="","",(E9*F9))) -> 
B14: ITEM | C14: IMAGEM ILUSTRATIUVA | D14: MODELO | E14: QTD | F14: VALOR UNITÁRIO | G14: VALOR TOTAL
B15: 3 | C15: Design será compartilhado posteriomente | D15: LEGGING FEMININA | E15: 150 | G15: =IF(E15="","",IF(F15="","",(E15*F15))) -> 
B20: TIME SÃO PAULO - MASCULINO
B21: ITEM | C21: IMAGEM ILUSTRATIUVA | D21: MODELO | E21: QTD | F21: VALOR UNITÁRIO | G21: VALOR TOTAL
B22: 4 | C22: Design será compartilhado posteriomente | D22: CAMISETA MASCULINA | E22: 300 | G22: =IF(E22="","",IF(F22="","",(E22*F22))) -> 
B27: ITEM | C27: IMAGEM ILUSTRATIUVA | D27: MODELO | E27: QTD | F27: VALOR UNITÁRIO | G27: VALOR TOTAL
B28: 5 | C28: Design será compartilhado posteriomente | D28: REGATA MASCULINA | E28: 150 | G28: =IF(E28="","",IF(F28="","",(E28*F28))) -> 
B33: ITEM | C33: IMAGEM ILUSTRATIUVA | D33: MODELO | E33: QTD | F33: VALOR UNITÁRIO | G33: VALOR TOTAL
B34: 6 | C34: Design será compartilhado posteriomente | D34: CALÇA MASCULINA | E34: 150 | G34: =IF(E34="","",IF(F34="","",(E34*F34))) -> 
B39: TOTAL | G39: =IF(SUM(G3,G9,G15,G22,G28,G34)=0,"",SUM(G3,G9,G15,G22,G28,G34)) -> 
B41: Valor da Proposta: | C41: =G39 -> 
B43: ='00.Orçamento Resumo'!A7 -> EMPRESA: | C43: =IF('00.Orçamento Resumo'!$B$7="","",'00.Orçamento Resumo'!$B$7) -> 
B44: ='00.Orçamento Resumo'!A8 -> CNPJ: | C44: =IF('00.Orçamento Resumo'!$B$8="","",'00.Orçamento Resumo'!$B$8) -> 

Sheet 20. ENDOMARKETING
B1: ENDOMARKETING | C1: - PASSEIO FEMININO
B2: ITEM | C2: IMAGEM ILUSTRATIUVA | D2: MODELO | E2: QTD | F2: VALOR UNITÁRIO | G2: VALOR TOTAL
B3: 1 | D3: BLUSÃO FEMININO / PA.028.20 | E3: 140 | G3: =IF(E3="","",IF(F3="","",(E3*F3))) -> 
B8: ITEM | C8: IMAGEM ILUSTRATIUVA | D8: MODELO | E8: QTD | F8: VALOR UNITÁRIO | G8: VALOR TOTAL
B9: 2 | D9: CALÇA FEMININA / PA.029.20 | E9: 140 | G9: =IF(E9="","",IF(F9="","",(E9*F9))) -> 
B14: ITEM | C14: IMAGEM ILUSTRATIUVA | D14: MODELO | E14: QTD | F14: VALOR UNITÁRIO | G14: VALOR TOTAL
B15: 3 | D15: CAMISA POLO FEMININA POLIESTER / PA.060.20 (AZUL) | E15: 140 | G15: =IF(E15="","",IF(F15="","",(E15*F15))) -> 
B20: ENDOMARKETING | C20: - PASSEIO MASCULINO
B21: ITEM | C21: IMAGEM ILUSTRATIUVA | D21: MODELO | E21: QTD | F21: VALOR UNITÁRIO | G21: VALOR TOTAL
B22: 4 | D22: BLUSÃO MASCULINO / PA.013.20 | E22: 200 | G22: =IF(E22="","",IF(F22="","",(E22*F22))) -> 
B27: ITEM | C27: IMAGEM ILUSTRATIUVA | D27: MODELO | E27: QTD | F27: VALOR UNITÁRIO | G27: VALOR TOTAL
B28: 5 | D28: CALÇA MASCULINA / PA.014.20 | E28: 200 | G28: =IF(E28="","",IF(F28="","",(E28*F28))) -> 
B33: ITEM | C33: IMAGEM ILUSTRATIUVA | D33: MODELO | E33: QTD | F33: VALOR UNITÁRIO | G33: VALOR TOTAL
B34: 6 | D34: CAMISA POLO MASCULINA POLIESTER / PA.043.20 (AZUL) | E34: 200 | G34: =IF(E34="","",IF(F34="","",(E34*F34))) -> 
B39: TOTAL | G39: =IF(SUM(G3,G9,G15,G22,G28,G34)=0,"",SUM(G3,G9,G15,G22,G28,G34)) -> 
B41: Valor da Proposta: | C41: =G39 -> 
B43: ='00.Orçamento Resumo'!A7 -> EMPRESA: | C43: =IF('00.Orçamento Resumo'!$B$7="","",'00.Orçamento Resumo'!$B$7) -> 
B44: ='00.Orçamento Resumo'!A8 -> CNPJ: | C44: =IF('00.Orçamento Resumo'!$B$8="","",'00.Orçamento Resumo'!$B$8) -> 
